[Event "Late-Titled-Tuesday-Blitz-August-29-2023"]
[Site "Chess.com"]
[Date "2023.08.29"]
[Round "3"]
[White "jinbojinbo"]
[Black "Piotrek1979"]
[Result "1/2-1/2"]
[WhiteElo "2667"]
[BlackElo "2468"]
[TimeControl "180+1"]
[EndTime "14:29:01 PDT"]
[Termination "Game drawn by repetition"]

1. Nf3 {[%clk 0:03:00.9]} 1... d5 {[%clk 0:02:51.7]} 2. g3 {[%clk 0:02:59.8]}
2... Nf6 {[%clk 0:02:46.8]} 3. Bg2 {[%clk 0:02:59.7]} 3... Bf5 {[%clk
0:02:47.2]} 4. O-O {[%clk 0:02:55.4]} 4... e6 {[%clk 0:02:47.1]} 5. d3 {[%clk
0:02:55.1]} 5... h6 {[%clk 0:02:45.8]} 6. Nbd2 {[%clk 0:02:52.6]} 6... Be7
{[%clk 0:02:45.9]} 7. c4 {[%clk 0:02:42.3]} 7... c6 {[%clk 0:02:44.4]} 8. b3
{[%clk 0:02:40.3]} 8... O-O {[%clk 0:02:42.4]} 9. Bb2 {[%clk 0:02:40.1]} 9...
Nbd7 {[%clk 0:02:40.3]} 10. Re1 {[%clk 0:02:38.4]} 10... Bh7 {[%clk 0:02:38.8]}
11. e4 {[%clk 0:02:36.6]} 11... dxe4 {[%clk 0:02:38.4]} 12. dxe4 {[%clk
0:02:37.1]} 12... Nc5 {[%clk 0:02:37.9]} 13. Ne5 {[%clk 0:02:19.5]} 13... Nfd7
{[%clk 0:02:23.1]} 14. Nxd7 {[%clk 0:01:26]} 14... Qxd7 {[%clk 0:02:20.1]} 15.
Nf3 {[%clk 0:01:25.7]} 15... Qxd1 {[%clk 0:01:55.9]} 16. Raxd1 {[%clk
0:01:25.2]} 16... Rfd8 {[%clk 0:01:46.1]} 17. Ba3 {[%clk 0:00:40.1]} 17... Kf8
{[%clk 0:01:45.9]} 18. Ne5 {[%clk 0:00:38.9]} 18... Ke8 {[%clk 0:01:46.3]} 19.
Kf1 {[%clk 0:00:22.2]} 19... f6 {[%clk 0:01:24.6]} 20. Bxc5 {[%clk 0:00:21.6]}
20... Bxc5 {[%clk 0:01:25.5]} 21. Nd3 {[%clk 0:00:21.7]} 21... Ba3 {[%clk
0:01:10.2]} 22. f4 {[%clk 0:00:16]} 22... a5 {[%clk 0:01:08.7]} 23. Bh3 {[%clk
0:00:15]} 23... Ke7 {[%clk 0:01:08.5]} 24. Ke2 {[%clk 0:00:14.1]} 24... Rd4
{[%clk 0:01:03]} 25. Nf2 {[%clk 0:00:11.8]} 25... Rad8 {[%clk 0:01:03.5]} 26.
Rxd4 {[%clk 0:00:11.8]} 26... Rxd4 {[%clk 0:01:04.4]} 27. Rd1 {[%clk 0:00:11.6]}
27... Bc5 {[%clk 0:01:01.6]} 28. Rxd4 {[%clk 0:00:09.6]} 28... Bxd4 {[%clk
0:01:02.5]} 29. Bg2 {[%clk 0:00:09.1]} 29... e5 {[%clk 0:00:56.1]} 30. fxe5
{[%clk 0:00:08.1]} 30... fxe5 {[%clk 0:00:53.6]} 31. Nd3 {[%clk 0:00:08.3]}
31... Kd6 {[%clk 0:00:53.3]} 32. h4 {[%clk 0:00:07.8]} 32... b5 {[%clk
0:00:50.5]} 33. cxb5 {[%clk 0:00:06.1]} 33... cxb5 {[%clk 0:00:49.6]} 34. Bf3
{[%clk 0:00:06.3]} 34... b4 {[%clk 0:00:46.6]} 35. Kd2 {[%clk 0:00:06.4]} 35...
Bg8 {[%clk 0:00:45.3]} 36. Kc2 {[%clk 0:00:06.6]} 36... Be6 {[%clk 0:00:41.9]}
37. Be2 {[%clk 0:00:05.9]} 37... Bh3 {[%clk 0:00:38.6]} 38. Bf3 {[%clk
0:00:05.5]} 38... Bf1 {[%clk 0:00:36.6]} 39. Kd2 {[%clk 0:00:05.4]} 39... Kc6
{[%clk 0:00:34.7]} 40. Kc2 {[%clk 0:00:05.4]} 40... Kb6 {[%clk 0:00:34]} 41. Kd2
{[%clk 0:00:04.5]} 41... Kb5 {[%clk 0:00:34.1]} 42. Kc2 {[%clk 0:00:04.7]} 42...
Bc3 {[%clk 0:00:31.2]} 43. Bh1 {[%clk 0:00:02.6]} 43... h5 {[%clk 0:00:23.6]}
44. Bf3 {[%clk 0:00:02.8]} 44... g6 {[%clk 0:00:23.8]} 45. Bh1 {[%clk
0:00:03.1]} 45... Bxd3+ {[%clk 0:00:19.2]} 46. Kxd3 {[%clk 0:00:03.2]} 46... Be1
{[%clk 0:00:20.1]} 47. g4 {[%clk 0:00:03.6]} 47... Bxh4 {[%clk 0:00:20]} 48.
gxh5 {[%clk 0:00:03.8]} 48... gxh5 {[%clk 0:00:19.7]} 49. Bf3 {[%clk 0:00:04.4]}
49... Kc5 {[%clk 0:00:15.1]} 50. Bxh5 {[%clk 0:00:05.3]} 50... Bf2 {[%clk
0:00:14.6]} 51. Be8 {[%clk 0:00:05.9]} 51... Bd4 {[%clk 0:00:15.3]} 52. Ba4
{[%clk 0:00:06.6]} 52... Bc3 {[%clk 0:00:14.9]} 53. Be8 {[%clk 0:00:07.5]} 53...
Bd4 {[%clk 0:00:15.7]} 54. Ba4 {[%clk 0:00:07.7]} 54... Bc3 {[%clk 0:00:16.6]}
55. Bd7 {[%clk 0:00:07.2]} 55... Bd4 {[%clk 0:00:17.5]} 56. Be8 {[%clk
0:00:07.7]} 56... Bc3 {[%clk 0:00:18.4]} 57. a4 {[%clk 0:00:08.1]} 57... Bd4
{[%clk 0:00:19.3]} 58. Bf7 {[%clk 0:00:07.9]} 58... Bc3 {[%clk 0:00:19.2]} 59.
Bd5 {[%clk 0:00:08.8]} 59... Bd4 {[%clk 0:00:19.6]} 60. Bc4 {[%clk 0:00:09.6]}
60... Bc3 {[%clk 0:00:20.4]} 61. Ke2 {[%clk 0:00:09.5]} 61... Bd4 {[%clk
0:00:21.3]} 62. Kf3 {[%clk 0:00:10]} 62... Bc3 {[%clk 0:00:22.2]} 63. Kg4 {[%clk
0:00:10.6]} 63... Kd4 {[%clk 0:00:23]} 64. Kf5 {[%clk 0:00:11.3]} 64... Kc5
{[%clk 0:00:21.4]} 65. Bd5 {[%clk 0:00:12.2]} 65... Kb6 {[%clk 0:00:20.9]} 66.
Ke6 {[%clk 0:00:13.1]} 66... Bd4 {[%clk 0:00:21]} 67. Kd7 {[%clk 0:00:13.7]}
67... Bc3 {[%clk 0:00:21.7]} 68. Kd6 {[%clk 0:00:14.2]} 68... Bd4 {[%clk
0:00:22.6]} 69. Bc4 {[%clk 0:00:14.1]} 69... Bc3 {[%clk 0:00:23.5]} 70. Bd5
{[%clk 0:00:14.5]} 70... Bd4 {[%clk 0:00:24.4]} 71. Bc4 {[%clk 0:00:14.1]} 71...
Bc3 {[%clk 0:00:25.3]} 72. Bd5 {[%clk 0:00:13.4]} 1/2-1/2

[Event "Late-Titled-Tuesday-Blitz-August-29-2023"]
[Site "Chess.com"]
[Date "2023.08.29"]
[Round "3"]
[White "js20000"]
[Black "LastGladiator1"]
[Result "0-1"]
[WhiteElo "2641"]
[BlackElo "2892"]
[TimeControl "180+1"]
[EndTime "14:29:03 PDT"]
[Termination "LastGladiator1 won by checkmate"]

1. e4 {[%clk 0:03:00.9]} 1... c5 {[%clk 0:02:56.4]} 2. Nf3 {[%clk 0:02:53.7]}
2... e6 {[%clk 0:02:56.6]} 3. g3 {[%clk 0:02:51.5]} 3... Nc6 {[%clk 0:02:46.5]}
4. Bg2 {[%clk 0:02:51]} 4... g6 {[%clk 0:02:46.2]} 5. d4 {[%clk 0:02:47.5]} 5...
cxd4 {[%clk 0:02:46]} 6. Nxd4 {[%clk 0:02:48.1]} 6... Bg7 {[%clk 0:02:45.9]} 7.
Nb5 {[%clk 0:02:40.4]} 7... Bf8 {[%clk 0:02:35.9]} 8. Bf4 {[%clk 0:02:37.1]}
8... e5 {[%clk 0:02:35.2]} 9. Be3 {[%clk 0:02:35.7]} 9... d6 {[%clk 0:02:35]}
10. N1c3 {[%clk 0:02:27.5]} 10... Be6 {[%clk 0:02:26.9]} 11. Nd5 {[%clk
0:02:26.2]} 11... Bxd5 {[%clk 0:02:27]} 12. Qxd5 {[%clk 0:02:14.6]} 12... Nf6
{[%clk 0:02:25.8]} 13. Qb3 {[%clk 0:01:58.3]} 13... Be7 {[%clk 0:02:15.3]} 14.
h3 {[%clk 0:01:54.9]} 14... O-O {[%clk 0:02:14.1]} 15. O-O {[%clk 0:01:54.5]}
15... a6 {[%clk 0:02:09]} 16. Nc3 {[%clk 0:01:54.2]} 16... Na5 {[%clk
0:02:09.4]} 17. Qb6 {[%clk 0:01:41.7]} 17... Qxb6 {[%clk 0:02:06.3]} 18. Bxb6
{[%clk 0:01:42.6]} 18... Nc4 {[%clk 0:02:07.1]} 19. Na4 {[%clk 0:01:40.4]} 19...
Rac8 {[%clk 0:01:55.1]} 20. b3 {[%clk 0:01:26.2]} 20... Nxb6 {[%clk 0:01:42.6]}
21. Nxb6 {[%clk 0:01:27.1]} 21... Rxc2 {[%clk 0:01:20.6]} 22. Rfc1 {[%clk
0:01:26.7]} 22... Rc6 {[%clk 0:01:18.9]} 23. Rxc6 {[%clk 0:01:24]} 23... bxc6
{[%clk 0:01:19.8]} 24. Rc1 {[%clk 0:01:24.1]} 24... c5 {[%clk 0:01:19.5]} 25.
Rd1 {[%clk 0:01:13.8]} 25... Rb8 {[%clk 0:01:08]} 26. Nc4 {[%clk 0:01:00.1]}
26... Kf8 {[%clk 0:01:00.7]} 27. Kf1 {[%clk 0:00:57.6]} 27... Ne8 {[%clk
0:00:42.5]} 28. Ke2 {[%clk 0:00:56.7]} 28... Nc7 {[%clk 0:00:42.5]} 29. Nxd6
{[%clk 0:00:51.4]} 29... Ne6 {[%clk 0:00:09.5]} 30. Nc4 {[%clk 0:00:51.4]} 30...
Nd4+ {[%clk 0:00:10.4]} 31. Kf1 {[%clk 0:00:51.2]} 31... f6 {[%clk 0:00:11.1]}
32. Ne3 {[%clk 0:00:47.8]} 32... Bd8 {[%clk 0:00:11.5]} 33. Nd5 {[%clk
0:00:47.6]} 33... Kf7 {[%clk 0:00:11.5]} 34. Rc1 {[%clk 0:00:47.3]} 34... Rc8
{[%clk 0:00:11.7]} 35. Ke1 {[%clk 0:00:45.8]} 35... Ke6 {[%clk 0:00:11.5]} 36.
Bf1 {[%clk 0:00:44.9]} 36... a5 {[%clk 0:00:12.1]} 37. Bc4 {[%clk 0:00:44.5]}
37... Kd6 {[%clk 0:00:12]} 38. Kf1 {[%clk 0:00:35.9]} 38... f5 {[%clk
0:00:12.1]} 39. Kg2 {[%clk 0:00:31.8]} 39... Ra8 {[%clk 0:00:11.2]} 40. Nc3
{[%clk 0:00:27]} 40... Bg5 {[%clk 0:00:06.9]} 41. Rd1 {[%clk 0:00:25]} 41... Rb8
{[%clk 0:00:07]} 42. Bd3 {[%clk 0:00:18.4]} 42... Kc6 {[%clk 0:00:06.1]} 43. Bc4
{[%clk 0:00:16.5]} 43... Rb4 {[%clk 0:00:05.5]} 44. Nd5 {[%clk 0:00:16]} 44...
Rb7 {[%clk 0:00:04.7]} 45. Nc3 {[%clk 0:00:16.3]} 45... Rb8 {[%clk 0:00:05]} 46.
Bd3 {[%clk 0:00:15.3]} 46... Bh6 {[%clk 0:00:03.9]} 47. Bc4 {[%clk 0:00:15.6]}
47... Rf8 {[%clk 0:00:03.7]} 48. Bd5+ {[%clk 0:00:15.6]} 48... Kd6 {[%clk
0:00:03.5]} 49. Bc4 {[%clk 0:00:15.9]} 49... Bg7 {[%clk 0:00:04.1]} 50. Nb5+
{[%clk 0:00:14.1]} 50... Kc6 {[%clk 0:00:04.4]} 51. Nc3 {[%clk 0:00:14.6]} 51...
h5 {[%clk 0:00:04.4]} 52. h4 {[%clk 0:00:14.1]} 52... Bh6 {[%clk 0:00:04.7]} 53.
exf5 {[%clk 0:00:12.2]} 53... gxf5 {[%clk 0:00:04.1]} 54. Nd5 {[%clk 0:00:11.8]}
54... f4 {[%clk 0:00:04.3]} 55. Ne7+ {[%clk 0:00:08.9]} 55... Kd6 {[%clk
0:00:04.9]} 56. Nd5 {[%clk 0:00:08.9]} 56... f3+ {[%clk 0:00:05.2]} 57. Kf1
{[%clk 0:00:08.7]} 57... e4 {[%clk 0:00:05.8]} 58. Re1 {[%clk 0:00:03.5]} 58...
Ke5 {[%clk 0:00:04.6]} 59. Nc3 {[%clk 0:00:03.8]} 59... e3 {[%clk 0:00:04.6]}
60. fxe3 {[%clk 0:00:04.7]} 60... Nc2 {[%clk 0:00:05.2]} 61. Rb1 {[%clk
0:00:03.7]} 61... Nxe3+ {[%clk 0:00:05.6]} 62. Kf2 {[%clk 0:00:04.1]} 62... Ng4+
{[%clk 0:00:06.2]} 63. Kf1 {[%clk 0:00:04]} 63... Be3 {[%clk 0:00:06.7]} 64. Re1
{[%clk 0:00:02.3]} 64... Nh2# {[%clk 0:00:06.7]} 0-1

[Event "Late-Titled-Tuesday-Blitz-August-29-2023"]
[Site "Chess.com"]
[Date "2023.08.29"]
[Round "3"]
[White "giomar27"]
[Black "robertoalejandro10"]
[Result "1-0"]
[WhiteElo "2277"]
[BlackElo "2518"]
[TimeControl "180+1"]
[EndTime "14:29:03 PDT"]
[Termination "giomar27 won by resignation"]

1. e4 {[%clk 0:03:00.9]} 1... c5 {[%clk 0:02:57.3]} 2. Nf3 {[%clk 0:02:59.8]}
2... g6 {[%clk 0:02:57.5]} 3. h4 {[%clk 0:02:58.5]} 3... h5 {[%clk 0:02:56.9]}
4. Bc4 {[%clk 0:02:43.9]} 4... Bg7 {[%clk 0:02:56.5]} 5. c3 {[%clk 0:02:43.6]}
5... Nc6 {[%clk 0:02:55.4]} 6. d4 {[%clk 0:02:40.9]} 6... cxd4 {[%clk
0:02:56.3]} 7. cxd4 {[%clk 0:02:41.8]} 7... Nf6 {[%clk 0:02:56.3]} 8. e5 {[%clk
0:02:41.7]} 8... Ng4 {[%clk 0:02:56.3]} 9. Nc3 {[%clk 0:02:37.3]} 9... d6 {[%clk
0:02:56.6]} 10. Ng5 {[%clk 0:02:32.5]} 10... O-O {[%clk 0:02:49.2]} 11. e6
{[%clk 0:02:16.6]} 11... fxe6 {[%clk 0:02:33.4]} 12. Bxe6+ {[%clk 0:02:06.1]}
12... Bxe6 {[%clk 0:02:17.4]} 13. Nxe6 {[%clk 0:02:06.1]} 13... Qb6 {[%clk
0:01:48.6]} 14. Nxf8 {[%clk 0:01:37]} 14... Rxf8 {[%clk 0:01:49.5]} 15. Be3
{[%clk 0:01:31.4]} 15... Qxb2 {[%clk 0:01:03.9]} 16. Qb3+ {[%clk 0:01:29.4]}
16... Qxb3 {[%clk 0:01:04.1]} 17. axb3 {[%clk 0:01:30.3]} 17... Bxd4 {[%clk
0:01:04.4]} 18. Bxd4 {[%clk 0:01:24.9]} 18... Nxd4 {[%clk 0:01:05.3]} 19. O-O
{[%clk 0:01:21.6]} 19... a6 {[%clk 0:00:56.9]} 20. b4 {[%clk 0:01:19.2]} 20...
Rc8 {[%clk 0:00:29.3]} 21. Nd5 {[%clk 0:01:16.1]} 21... Kf7 {[%clk 0:00:29.4]}
22. Rfd1 {[%clk 0:01:10.8]} 22... e5 {[%clk 0:00:27.6]} 23. Ne3 {[%clk
0:01:02.3]} 23... Nf6 {[%clk 0:00:17.6]} 24. Kf1 {[%clk 0:00:57.6]} 24... Ke6
{[%clk 0:00:17.8]} 25. Rac1 {[%clk 0:00:57.1]} 25... Rxc1 {[%clk 0:00:13.8]} 26.
Rxc1 {[%clk 0:00:58]} 26... Kd7 {[%clk 0:00:13]} 27. f3 {[%clk 0:00:57.9]} 27...
Ng8 {[%clk 0:00:09]} 28. g4 {[%clk 0:00:57.9]} 28... Ne7 {[%clk 0:00:07.2]} 29.
Kf2 {[%clk 0:00:53.4]} 29... Nec6 {[%clk 0:00:07.3]} 30. Nd5 {[%clk 0:00:51.2]}
30... Nb3 {[%clk 0:00:05.9]} 31. Rg1 {[%clk 0:00:48.5]} 31... Ke6 {[%clk
0:00:04.1]} 32. gxh5 {[%clk 0:00:42.9]} 32... gxh5 {[%clk 0:00:05]} 33. Nc7+
{[%clk 0:00:41.6]} 33... Kf6 {[%clk 0:00:04.6]} 34. Rg5 {[%clk 0:00:30.8]} 34...
Nxb4 {[%clk 0:00:04.4]} 35. Rxh5 {[%clk 0:00:29.2]} 35... a5 {[%clk 0:00:05]}
36. Rh6+ {[%clk 0:00:25.8]} 36... Ke7 {[%clk 0:00:04.6]} 37. Nb5 {[%clk
0:00:25.5]} 37... a4 {[%clk 0:00:04.8]} 38. h5 {[%clk 0:00:19.6]} 38... Nc5
{[%clk 0:00:04.3]} 39. Rxd6 {[%clk 0:00:15.4]} 39... Nc6 {[%clk 0:00:04.1]} 40.
h6 {[%clk 0:00:14.3]} 40... Kf7 {[%clk 0:00:04.7]} 41. Rd5 {[%clk 0:00:06.8]}
41... Kg6 {[%clk 0:00:03.7]} 42. Rxc5 {[%clk 0:00:06.8]} 42... Kxh6 {[%clk
0:00:03]} 43. Rc1 {[%clk 0:00:05.1]} 43... Kg5 {[%clk 0:00:03.1]} 44. Ra1 {[%clk
0:00:05.3]} 44... Nb4 {[%clk 0:00:02.4]} 45. Rxa4 {[%clk 0:00:04.9]} 45... Nd5
{[%clk 0:00:03.3]} 46. Ra7 {[%clk 0:00:04.5]} 46... b6 {[%clk 0:00:03.1]} 47.
Rb7 {[%clk 0:00:04.3]} 47... Kf5 {[%clk 0:00:02.7]} 48. Nc7 {[%clk 0:00:04.6]}
48... Nb4 {[%clk 0:00:02.6]} 49. Rxb6 {[%clk 0:00:03.6]} 49... Nd3+ {[%clk
0:00:03.5]} 50. Ke3 {[%clk 0:00:03.2]} 50... Nc5 {[%clk 0:00:04.4]} 51. Nd5
{[%clk 0:00:03.2]} 51... Ne6 {[%clk 0:00:04]} 52. Rxe6 {[%clk 0:00:02.8]} 52...
Kxe6 {[%clk 0:00:04.9]} 53. Nc3 {[%clk 0:00:03.5]} 53... Kf5 {[%clk 0:00:05.5]}
54. Ne4 {[%clk 0:00:04.4]} 54... Ke6 {[%clk 0:00:05.9]} 55. Nf2 {[%clk
0:00:05.1]} 55... Kf5 {[%clk 0:00:06.8]} 56. Nd3 {[%clk 0:00:05.7]} 56... Kg5
{[%clk 0:00:07.5]} 57. Ke4 {[%clk 0:00:06.6]} 57... Kf6 {[%clk 0:00:07.9]} 58.
Nxe5 {[%clk 0:00:07.2]} 58... Ke6 {[%clk 0:00:08.4]} 59. Nd3 {[%clk 0:00:08.1]}
59... Kf6 {[%clk 0:00:09.3]} 60. Nf2 {[%clk 0:00:08.7]} 60... Ke6 {[%clk
0:00:10]} 61. f4 {[%clk 0:00:09.6]} 61... Kf6 {[%clk 0:00:10.9]} 62. Nd3 {[%clk
0:00:10.5]} 62... Kf7 {[%clk 0:00:11.8]} 63. Ne1 {[%clk 0:00:11.4]} 63... Ke7
{[%clk 0:00:12.7]} 64. Nf3 {[%clk 0:00:12.3]} 64... Kf7 {[%clk 0:00:13.6]} 65.
Ne1 {[%clk 0:00:13.2]} 65... Ke7 {[%clk 0:00:14.5]} 66. f5 {[%clk 0:00:14.1]}
66... Kf7 {[%clk 0:00:15.4]} 67. Kf4 {[%clk 0:00:15]} 67... Kf6 {[%clk
0:00:16.2]} 68. Ke4 {[%clk 0:00:15.5]} 68... Kf7 {[%clk 0:00:17.1]} 69. Ke5
{[%clk 0:00:16.4]} 69... Kg7 {[%clk 0:00:18]} 70. f6+ {[%clk 0:00:17]} 70... Kf7
{[%clk 0:00:18.9]} 71. Kf5 {[%clk 0:00:17.8]} 71... Kf8 {[%clk 0:00:19.2]} 72.
Ke6 {[%clk 0:00:18.4]} 72... Ke8 {[%clk 0:00:19.6]} 73. f7+ {[%clk 0:00:19.1]}
73... Kf8 {[%clk 0:00:20.5]} 74. Nc2 {[%clk 0:00:19.6]} 74... Kg7 {[%clk
0:00:21.4]} 75. Ke7 {[%clk 0:00:20.1]} 75... Kh7 {[%clk 0:00:22.2]} 76. f8=Q
{[%clk 0:00:20.2]} 76... Kg6 {[%clk 0:00:23.1]} 77. Qf6+ {[%clk 0:00:19.7]}
77... Kh7 {[%clk 0:00:24]} 78. Qg5 {[%clk 0:00:19.4]} 78... Kh8 {[%clk
0:00:24.2]} 79. Kf7 {[%clk 0:00:19.8]} 1-0

[Event "Late-Titled-Tuesday-Blitz-August-29-2023"]
[Site "Chess.com"]
[Date "2023.08.29"]
[Round "3"]
[White "oskariot"]
[Black "jcmesafischer"]
[Result "1/2-1/2"]
[WhiteElo "2647"]
[BlackElo "2455"]
[TimeControl "180+1"]
[EndTime "14:29:05 PDT"]
[Termination "Game drawn - insufficient material"]

1. e4 {[%clk 0:03:00.9]} 1... c5 {[%clk 0:02:48.3]} 2. Nf3 {[%clk 0:02:57.7]}
2... d6 {[%clk 0:02:45.7]} 3. d4 {[%clk 0:02:57.2]} 3... cxd4 {[%clk 0:02:44.4]}
4. Nxd4 {[%clk 0:02:58.1]} 4... Nf6 {[%clk 0:02:44.2]} 5. Nc3 {[%clk 0:02:58.2]}
5... a6 {[%clk 0:02:44.7]} 6. h4 {[%clk 0:02:57.6]} 6... e5 {[%clk 0:02:41.5]}
7. Nb3 {[%clk 0:02:57.1]} 7... Be7 {[%clk 0:02:37.3]} 8. Bg5 {[%clk 0:02:56.2]}
8... Be6 {[%clk 0:02:35.1]} 9. Bxf6 {[%clk 0:02:56.2]} 9... Bxf6 {[%clk
0:02:36]} 10. g3 {[%clk 0:02:56.9]} 10... O-O {[%clk 0:02:32.1]} 11. Qd2 {[%clk
0:02:56.6]} 11... Be7 {[%clk 0:02:26.2]} 12. O-O-O {[%clk 0:02:55.7]} 12... b5
{[%clk 0:02:18.7]} 13. f4 {[%clk 0:02:47.5]} 13... Nd7 {[%clk 0:02:07.1]} 14.
Nd5 {[%clk 0:02:40.5]} 14... Bxd5 {[%clk 0:02:05.7]} 15. Qxd5 {[%clk 0:02:37.9]}
15... Nf6 {[%clk 0:02:02.3]} 16. Qd3 {[%clk 0:02:36.5]} 16... Ng4 {[%clk
0:01:52.9]} 17. Qf3 {[%clk 0:02:32.1]} 17... h5 {[%clk 0:01:42.7]} 18. Bh3
{[%clk 0:02:29.7]} 18... a5 {[%clk 0:01:43]} 19. Bxg4 {[%clk 0:02:06.9]} 19...
hxg4 {[%clk 0:01:41.7]} 20. Qxg4 {[%clk 0:02:07.8]} 20... a4 {[%clk 0:01:41.8]}
21. Nd2 {[%clk 0:02:08.4]} 21... a3 {[%clk 0:01:40.8]} 22. b3 {[%clk 0:02:06.7]}
22... Rc8 {[%clk 0:01:39.6]} 23. Qf3 {[%clk 0:02:01.7]} 23... Qc7 {[%clk
0:01:34.2]} 24. Qd3 {[%clk 0:02:01.6]} 24... Rfd8 {[%clk 0:01:27.1]} 25. c4
{[%clk 0:01:13.2]} 25... exf4 {[%clk 0:01:21.4]} 26. gxf4 {[%clk 0:01:11.8]}
26... d5 {[%clk 0:01:20.1]} 27. exd5 {[%clk 0:00:59.8]} 27... bxc4 {[%clk
0:01:17.8]} 28. Nxc4 {[%clk 0:00:55.6]} 28... Qxf4+ {[%clk 0:01:12.4]} 29. Kb1
{[%clk 0:00:52.8]} 29... Bf6 {[%clk 0:00:59.3]} 30. Rhf1 {[%clk 0:00:43.2]}
30... Qh2 {[%clk 0:00:48.4]} 31. Rd2 {[%clk 0:00:42.4]} 31... Qxh4 {[%clk
0:00:43.6]} 32. d6 {[%clk 0:00:40.9]} 32... Qh5 {[%clk 0:00:24.5]} 33. Rg2
{[%clk 0:00:30]} 33... Rxc4 {[%clk 0:00:14.3]} 34. Qxc4 {[%clk 0:00:28.1]} 34...
Qe5 {[%clk 0:00:13.7]} 35. Rxf6 {[%clk 0:00:13.3]} 35... Qxf6 {[%clk 0:00:10.6]}
36. Rd2 {[%clk 0:00:07.1]} 36... Qf5+ {[%clk 0:00:04]} 37. Qd3 {[%clk
0:00:06.4]} 37... Qxd3+ {[%clk 0:00:03.6]} 38. Rxd3 {[%clk 0:00:07.3]} 38... f6
{[%clk 0:00:03.6]} 39. b4 {[%clk 0:00:06.2]} 39... Kf7 {[%clk 0:00:04.2]} 40.
Rxa3 {[%clk 0:00:06.4]} 40... Rxd6 {[%clk 0:00:03.3]} 41. Ra7+ {[%clk
0:00:06.9]} 41... Kf8 {[%clk 0:00:02.4]} 42. a4 {[%clk 0:00:07.8]} 42... g5
{[%clk 0:00:02.7]} 43. b5 {[%clk 0:00:07.1]} 43... g4 {[%clk 0:00:02.3]} 44. Rc7
{[%clk 0:00:06.1]} 44... g3 {[%clk 0:00:02.7]} 45. Rc2 {[%clk 0:00:04.3]} 45...
f5 {[%clk 0:00:02.8]} 46. Rc5 {[%clk 0:00:03.9]} 46... f4 {[%clk 0:00:02.9]} 47.
Rf5+ {[%clk 0:00:04.3]} 47... Ke7 {[%clk 0:00:02.9]} 48. Rxf4 {[%clk 0:00:04.8]}
48... Rg6 {[%clk 0:00:03.3]} 49. Rf1 {[%clk 0:00:04.7]} 49... Kd6 {[%clk
0:00:03.4]} 50. Kc2 {[%clk 0:00:04.4]} 50... Kc5 {[%clk 0:00:04]} 51. Kb3 {[%clk
0:00:05]} 51... Kb6 {[%clk 0:00:03.6]} 52. Rg1 {[%clk 0:00:03.1]} 52... g2
{[%clk 0:00:03.8]} 53. Kb4 {[%clk 0:00:03]} 53... Rg4+ {[%clk 0:00:03.2]} 54.
Kb3 {[%clk 0:00:03.5]} 54... Ka5 {[%clk 0:00:03.8]} 55. Kc3 {[%clk 0:00:03]}
55... Kxa4 {[%clk 0:00:02]} 56. b6 {[%clk 0:00:03.5]} 56... Rg7 {[%clk
0:00:02.2]} 57. Ra1+ {[%clk 0:00:01.9]} 57... Kb5 {[%clk 0:00:01.2]} 58. Rb1+
{[%clk 0:00:02.6]} 58... Kc6 {[%clk 0:00:01.7]} 59. Rg1 {[%clk 0:00:02.8]} 59...
Kxb6 {[%clk 0:00:01.7]} 60. Kd3 {[%clk 0:00:03.3]} 60... Kc6 {[%clk 0:00:02.6]}
61. Ke3 {[%clk 0:00:04.2]} 61... Kd5 {[%clk 0:00:03.2]} 62. Kf3 {[%clk
0:00:04.9]} 62... Ke5 {[%clk 0:00:03.9]} 63. Kf2 {[%clk 0:00:05.8]} 63... Rf7+
{[%clk 0:00:04.4]} 64. Kxg2 {[%clk 0:00:05.5]} 64... Rg7+ {[%clk 0:00:05.3]} 65.
Kh2 {[%clk 0:00:06.4]} 65... Rxg1 {[%clk 0:00:05.5]} 66. Kxg1 {[%clk 0:00:07.3]}
1/2-1/2